Cogmind - Beta 16 @@@ ROGUE MODE // 2026.01.22 @ 18:33:26 Player: Artackni Result: Destroyed by G-34 Mercenary with Small Laser Performance ------------- Evolutions (0) 0 Regions Visited (1) 200 Robots Destroyed (17) 85 Value Destroyed (291) 291 Prototype IDs (0) 0 Alien Tech Used (0) 0 Bonus (0) 0 TOTAL SCORE: 576 Bonus ------- None Cogmind --------- Core Integrity 0/250 Matter 297/300 Energy 91/100 System Corruption 0% Temperature Cool (6) Movement Rolling (110) Ox2 Location -10/Materials Parts ------- > --- POWER (1) -------- (None) > --- PROPULSION (2) --- Wheel Wheel > --- UTILITY (2) ------ High-capacity Storage Unit Seismic Detector > --- WEAPON (2) ------- Small Laser Light Assault Rifle > --- INVENTORY (20) --- Light Ion Engine Light Ion Engine Light Ion Engine Light Treads Light Treads Light Treads Small Storage Unit Structural Scanner Structural Scanner Signal Interpreter Seismic Detector Datajack Peak State ------------ > --- POWER ------------ Light Ion Engine > --- PROPULSION ------- Wheel Compact Wheel > --- UTILITY ---------- High-capacity Storage Unit Visual Processing Unit > --- WEAPON ----------- Medium Laser Assault Rifle > --- INVENTORY -------- Light Ion Engine Light Ion Engine Light Ion Engine Light Treads Light Treads Light Treads Small Storage Unit Signal Interpreter Seismic Detector Datajack [Rating: 9] Favorites ----------- Power Light Ion Engine Engine Light Ion Engine Propulsion Wheel Wheel Wheel Utility High-capacity Storage Unit Device Seismic Detector Storage High-capacity Storage Unit Processor Visual Processing Unit Weapon Assault Rifle Energy Gun Medium Laser Ballistic Gun Assault Rifle Build | -11 -10 ------- Run | Yrd Mat Slots Evolved . | . . Power . | . . Propulsion . | . . Utility . | . . Weapon . | . . Parts Attached 15 | 7 8 Power 2 | 1 1 Engine 2 | 1 1 Core . | . . Reactor . | . . Propulsion 4 | 2 2 Treads . | . . Leg . | . . Wheel 4 | 2 2 Hover . | . . Flight . | . . Utility 5 | 2 3 Device 2 | 1 1 Storage 2 | 1 1 Processor 1 | . 1 Hackware . | . . Protection . | . . Artifact . | . . Weapon 4 | 2 2 Energy Gun 2 | 1 1 Energy Cannon . | . . Ballistic Gun 2 | 1 1 Ballistic Cannon . | . . Launcher . | . . Special Weapon . | . . Impact Weapon . | . . Slashing Weapon . | . . Piercing Weapon . | . . Special Melee Weapon . | . . Unidentified Prototypes . | . . Parts Lost 6 | . 6 Power 1 | . 1 Propulsion 2 | . 2 Utility 1 | . 1 Weapon 2 | . 2 Highest Loss Streak 2 | . 2 To Critical Strikes . | . . Average Backups 9 | 1 10 Power 2 | . 2 Propulsion 3 | 1 3 Utility 3 | . 3 Weapon . | . . Tool/Special . | . . Unused Backups 10 | . 10 Power 2 | . 2 Propulsion 3 | . 3 Utility 4 | . 4 Weapon . | . . Tool/Special 1 | . 1 Average Slot Usage (%) 89 | . 89 Engine 11 | . 11 Wheel 26 | . 26 Device 8 | . 8 Storage 15 | . 15 Processor 2 | . 2 Energy Gun 9 | . 9 Ballistic Gun 14 | . 14 Peak Build Rating 9 | 7 9 Average Rating 6 | 5 7 On Entrance 3 | . 7 Avg Prop Armor Cover (%) . | . . Naked Turns . | . . Heaviest Build 52 | 13 52 Greatest Support 26 | 26 26 Greatest Overweight (x) 4 | . 4 Average Overweight (x) . | . 1 Largest Inventory Capacity 20 | 8 20 Average Capacity 17 | 7 18 Most Carried 15 | 4 15 Average Carried 9 | 1 10 Final Capacity 20 | 8 20 Final Carried 12 | 4 12 Class Distribution -------------------- 100% | Mutant Dominant Class ---------------- Mutant | -10/Materials Resources | -11 -10 ----------- Run | Yrd Mat Matter Collected 502 | 206 296 Remotely . | . . Salvage Created 533 | 55 478 Parts 38 | 8 30 Haulers Intercepted 1 | . 1 Recyclers Shooed 2 | . 2 Parts Field Recycled . | . . Retrieved Matter . | . . Parts Self-Destructed . | . . Prevented . | . . Parts Restored . | . . Kills | -11 -10 ------- Run | Yrd Mat Combat Hostiles Destroyed 8 | . 8 Guns 8 | . 8 Classes Destroyed 8 | 1 7 Worker 1 | . 1 Tunneler 3 | 2 1 Hauler 1 | . 1 Recycler 1 | . 1 Operator 1 | . 1 Watcher 2 | . 2 Swarmer 3 | . 3 Grunt 5 | . 5 Best Kill Streak 4 | 2 4 Combat Bots Only 3 | . 3 Max Kills in Single Turn 1 | 1 1 Gunslinging . | . . Exploded . | . . Melee . | . . Uniques/NPCs Destroyed . | . . Combat | -11 -10 -------- Run | Yrd Mat Hostile Shots Fired 85 | . 85 Missed 22 | . 22 Hits 63 | . 63 Projectile 63 | . 63 Critical Strikes 1 | . 1 Damage Taken 703 | . 703 Core 250 | . 250 Absorbed by Shields . | . . Core Remaining (%) 100 | 100 . Volleys Fired 87 | 4 83 Largest 2 | 2 2 Hottest 70 | 70 70 Shots Fired 135 | 8 127 Gun 135 | 8 127 Cannon . | . . Launcher . | . . Special . | . . Kinetic 87 | 4 83 Thermal 48 | 4 44 Explosive . | . . Electromagnetic . | . . Robot Hit Streak 7 | 3 7 Robot Miss Streak 4 | 1 4 Penetration Max . | . . Secondary Targets . | . . Shots Hit Robots 73 | 5 68 Core Hits 30 | 2 28 Critical Kills . | . . Critical Parts Destroyed . | . . Critical Strikes 2 | 1 1 Burn 2 | 1 1 Melee Attacks . | . . Impact . | . . Slashing . | . . Piercing . | . . Sneak Attacks . | . . Combat Hostiles . | . . Follow-up Attacks . | . . Damage Inflicted 912 | 76 836 Guns 912 | 76 836 Cannons . | . . Explosions . | . . Melee . | . . Ramming . | . . Kinetic 564 | 38 526 Thermal 348 | 38 310 Explosive . | . . Electromagnetic . | . . Impact . | . . Slashing . | . . Piercing . | . . Highest Corruption . | . . Average Corruption . | . . Corruption Purged . | . . Corruption Blocked . | . . Overload Shots . | . . Overflow Damage . | . . Projectiles . | . . Explosions . | . . Melee . | . . Knockbacks . | . . Impact . | . . Kinetic . | . . Secondary . | . . Self-Inflicted Damage . | . . Shots . | . . Rammed . | . . Targets Rammed . | . . Kicked . | . . Crushed . | . . Highest Temperature 198 | 18 198 Average Temperature 44 | 8 47 Received Heat Transfer 312 | . 312 Siege Activations . | . . Martial Activations . | . . Shielding Activations . | . . Robots Disrupted . | . . Combat Hostiles . | . . Robots Corrupted . | . . Combat Hostiles . | . . Parts Fried . | . . Impact Corruptions . | . . Robots Melted . | . . Combat Hostiles . | . . Parts Melted . | . . Heat Transferred 1148 | 185 963 Parts Sabotaged . | . . Parts Stolen . | . . Parts Stripped . | . . Power Chain Reactions . | . . Alert | -11 -10 ------- Run | Yrd Mat Maximum Alert Level . | . . Low Security (%) 100 | 100 100 Level 1 . | . . Level 2 . | . . Level 3 . | . . Level 4 . | . . Level 5 . | . . High Security . | . . Max Security . | . . Peak Influence 61 | 10 61 Initial . | . . Average 16 | 1 17 Influence Increases 258 | 10 248 Destroy 0b10 Robot/C 160 | . 160 Destroy 0b10 Robot/NC 45 | 10 35 Destroy Leader 36 | . 36 Successful Hack 16 | . 16 Destroy Structure 1 | . 1 Influence Decreases 258 | 10 248 Time Decay 221 | 10 211 Lost Part 37 | . 37 Squads Dispatched 2 | . 2 Investigation . | . . Extermination . | . . Reinforcement 2 | . 2 Assault . | . . Garrison . | . . Intercept . | . . Searches Triggered . | . . Construction Impeded . | . . Haulers Reinforced . | . . Active Scanning Responses . | . . Cargo Convoy Interrupts . | . . Stealth | -11 -10 --------- Run | Yrd Mat Distress Signals 1 | . 1 Communications Jammed . | . . Distress Signals . | . . Times Spotted 18 | . 18 Peak Tracking Total 4 | . 4 Tactical Retreats . | . . Traps | -11 -10 ------- Run | Yrd Mat Traps Triggered . | . . Indirectly . | . . Trap Hack Attempts . | . . Triggered . | . . Disarmed . | . . Reprogrammed . | . . Reused . | . . Traps Extracted . | . . Installed . | . . Triggered . | . . Machines | -11 -10 ---------- Run | Yrd Mat Machines Disabled . | . . Max in Single Turn . | . . Machines Repaired . | . . Machines Dismantled . | . . Machines Sabotaged . | . . Overloaded Fab Kills . | . . Hacking | -11 -10 --------- Run | Yrd Mat Machines Accessed 2 | . 2 Terminals 1 | . 1 Fabricators . | . . Repair Stations . | . . Recycling Units 1 | . 1 Scanalyzers . | . . Garrison Access . | . . Total Hacks 4 | . 4 Successful 2 | . 2 Failed 2 | . 2 Catastrophic . | . . Database Lockouts . | . . Manual 2 | . 2 Terminals 2 | . 2 Fabricators . | . . Repair Stations . | . . Recycling Units 2 | . 2 Scanalyzers . | . . Garrison Access . | . . Terminal Hacks . | . . Fabricator Hacks . | . . Repair Station Hacks . | . . Recycling Unit Hacks 1 | . 1 Retrieve Components 1 | . 1 Scanalyzer . | . . Garrison Access Hacks . | . . Unauthorized Hacks 1 | . 1 Terminals 1 | . 1 Operators 1 | . 1 Fabricators . | . . Repair Stations . | . . Recycling Units . | . . Scanalyzers . | . . Garrison Access . | . . Data Cores Recovered . | . . Used . | . . Hacking Detections 2 | . 2 Full Trace Events . | . . Feedback Events . | . . Feedback Blocked . | . . Robot Schematics Acquired . | . . Robots Built . | . . Authchips . | . . Time . | . . Total Robot Build Rating . | . . Part Schematics Acquired . | . . Parts Built . | . . Authchips . | . . Time . | . . Total Part Build Rating . | . . Part Studies Acquired . | . . Parts Repaired . | . . Time . | . . Parts Recycled . | . . Recycled Matter . | . . Retrieved Matter . | . . Retrieved Components 3 | . 3 Parts Scanalyzed . | . . Part Schematics Acquired . | . . Parts Damaged . | . . Bothacking | -11 -10 ------------ Run | Yrd Mat Used RIF Installer . | . . Robots Hacked . | . . Non-combat . | . . Combat . | . . Robot Hacks Applied . | . . Relay Couplers Released . | . . Fabnet Peak Effective % . | . . Robots Rewired . | . . Allies Hacked . | . . Hacks Repelled . | . . Allies | -11 -10 -------- Run | Yrd Mat Total Allies . | . . Largest Group . | . . Highest-Rated Group . | . . Highest-Rated Ally . | . . Total Orders . | . . Ally Attacks . | . . Total Damage . | . . Kills . | . . Allies Corrupted . | . . Allies Melted . | . . Intel | -11 -10 ------- Run | Yrd Mat Active Infowar (turns) 477 | 2 475 Optics 104 | . 104 Seismic 373 | 2 371 Robot Analysis Total . | . . Derelict Logs Recovered . | . . Drone Launches . | . . Drone Recoveries . | . . Exploration | -11 -10 ------------- Run | Yrd Mat Turns Passed 704 | 61 643 Spaces Moved 417 | 40 377 Core 3 | 3 . Treads . | . . Legs . | . . Wheels 414 | 37 377 Hover . | . . Flight . | . . Fastest Speed 50 | 50 90 Average Speed 103 | 86 105 Slowest Speed 140 | 90 140 Overloaded Moves . | . . Propulsion Burnouts . | . . Robots Hopped . | . . Potential Cave-ins . | . . Cave-ins Triggered . | . . Exploration Rate (%) 28 | 4 52 Regions Visited 1 Branch Regions . Pre-discovered Areas . | . . Known Exits Taken . | . . Unknown Exits Taken 1 | 1 . Scrap Searched . | . . Spaces Dug . | . . Terrain Destroyed . | . . Melee . | . . Projectile . | . . AOE . | . . Terrain Rammed . | . . Walls Destroyed . | . . Machines Disabled . | . . Actions | -11 -10 --------- Run | Yrd Mat Total 558 | 54 504 Wait 25 | . 25 Move 416 | 39 377 Hop . | . . Pick Up 13 | 4 9 Fast Attach 11 | 7 4 Attach 3 | . 3 Detach 2 | . 2 Swap 1 | . 1 Drop . | . . Fire 87 | 4 83 Melee . | . . Ram . | . . Kick . | . . Crush . | . . Escape Stasis . | . . Rewire . | . . Trap . | . . Miscellaneous . | . . Route ------- -11/Scrapyard -10/Materials (discovered 2 exits: [*Mat x2]) History --------- Turn | Location | Event 22 | -11/Scrapyard | Discovered new exit (range 16) 62 | -11/Scrapyard | Entered Materials 289 | -10/Materials | Discovered new exit (range 6) 310 | -10/Materials | Build established: Mutant 464 | -10/Materials | Core integrity fell below 50% 539 | -10/Materials | Discovered new exit (range 12) 576 | -10/Materials | Core integrity fell below 20% 705 | -10/Materials | Destroyed by G-34 Mercenary with Small Laser Last Messages --------------- 00575_ G-34 Mercenary destroyed. 00579_ R-06 Scavenger collects Ion Engine. 00590_ Acquired 6 matter. 00599_ Com. Wheel destroyed. 00605_ K-01 Serf collects debris. 00605_ Lgt. Ion Engine destroyed. 00611_ G-34 Mercenary destroyed. 00612_ R-06 Scavenger collects Sml. Laser. 00617_ K-01 Serf collects debris. 00620_ Acquired 6 matter. 00620_ K-01 Serf collects debris. 00661_ O-16 Technician: "IFF HANDSHAKE FAILED. SECURING TERMINAL." 00670_ O-16 Technician uses terminal to summon reinforcements. 00670_ ALERT: Hostiles spotted, dispatching reinforcements to Terminal M008. 00670_ O-16 Technician locks terminal. 00680_ R-06 Scavenger destroyed. 00683_ Acquired Sml. Laser. 00685_ Acquired 33 matter. 00686_ K-01 Serf collects debris. Map ----- +----------------------------------------------------+ | ????????????# #????????????????????????????????? | | ????????????# %#??##########????????????????????? | | ????????????# #??# #????????????????????? | | ????????????# #??# """ #????????????????????? | | ????????????# % #??# """ +????????????????????? | | ?############ #### """ #????????????????????? | | ?# % # #????????????????????? | | ?# ! / """ #????????????????????? | | ?# % # R" #????????????????????? | | ?# ############# # """ #?????#"T????????????? | | ?# #???????????# # #????? ?????o?????? | | ?# #??########?# ##########????? ???????????? | | ?# #? #?# #?????????????? ???????????? | | ?# #? #?# #?????????????# #???????????? | | ?# # #?# #?????????????# #???????????? | | ?# # #?# #?????????????# #???????????? | | ?# + #?# #?????????????# #???????????? | | ?# # ### ###???????????# #???????????? | | ?# < # # ######??????# #???????????? | | ?# #? # #??????# #???????????? | | ?#####?######### g + ????# #???????????? | | ???????????????# # # #???????????? | | ???????????????# # #??? # #???????????? | | ???????????????####### #??????# #######?????? | | ?????????????????????# #??????# ! | | ?????????????????????# @######## %*######??????? | | ?????????????????????# r #???????????? | | ?????????????????????# ############+##???????????? | | ?????????????????????# #?????????? ????????????? | | ????????????????????? ??????????? ????????????? | | ????????????????????###??????????""" "???????????? | | ?????????????????????????????????"""""???????????? | | ???????????????????????????????? """"" ??????????? | | ???????????????????????????????? ??????????? | | ?????????????????????????????????#####???????????? | | | | | | | | | | | | | | | | | | | | | | | | | | | | | | | +----------------------------------------------------+ Best States ------------- Heat Dissipation 25 Energy Generation 10 Energy Capacity 125 Matter Stores 300 Matter Capacity 300 Sight Range 18 Terrain Scan Density 10 Evasion (%) 42 Item Schematics ----------------- None Robot Schematics ------------------ None Fabricated ------------ Nothing Repaired ---------- Nothing Studied --------- None Alien Tech Used ----------------- None Achievements -------------- None Challenges ------------ None Game ------ Seed FissionDisruptorBay Manual? 0 Play Time 00:10:56 Cumulative 89.9 hours Start 2026.01.22 @ 18:27:30 End 2026.01.22 @ 18:33:26 Sessions 1 Manual Loads 0 Difficulty Rogue Special Mode None Game No. 35 Rogue 35 Adventurer 0 Explorer 0 Win Type - Total 2 Types 1/0/1/0/0/0/0/0/0/0 Lore% 46 Gallery% 52 Achievement% 44 Wizard Run 0 Options --------- Layout 0 ASCII 0 Keyboard 1 Movement Arrows Keybinds 0 Fullscreen 1 Font 18/SmallcapsGlow Map View 76x50 Zoom Use 0% Tactical HUD 1 Map Filters NONE Filters NONE Steam 1 RUN: 88f14b30-15b3-4204-b1ca-6c15da6b0f89